bitfinex/quotes_SOLUSD_20241213
["timestamp","ask_amount","ask_price","bid_price","bid_amount"]
[1734079924270,8.31837761,226.33,226.26,8.31837761]
[1734079925162,8.31837761,226.31,226.24,8.31837761]
[1734079925767,8.31837761,226.3,226.22,7.7199]
[1734079925968,8.31837761,226.29,226.22,16.03827761]
[1734079926178,8.31837761,226.28,226.22,16.03827761]
[1734079926679,8.31837761,226.28,226.22,7.7199]
[1734079927190,8.31837761,226.29,226.22,16.03827761]
[1734079927369,8.31837761,226.3,226.23,8.31837761]
[1734079928883,8.31837761,226.26,226.22,7.7199]
[1734079929092,8.31837761,226.24,226.22,6.1859]
[1734079929288,8.31837761,226.23,226.17,1.567]
[1734079929475,8.31837761,226.22,226.17,1.567]
[1734079930663,8.31837761,226.23,226.17,1.567]
[1734079931088,8.31837761,226.23,226.17,9.88537761]
[1734079932764,8.31837761,226.22,226.17,1.567]
[1734079933898,8.31837761,226.19,226.16,6.1615]
[1734079934184,8.31837761,226.18,226.16,6.1615]
[1734079934392,8.31837761,226.18,226.12,8.31837761]
[1734079935079,8.31837761,226.19,226.12,8.31837761]
[1734079935387,8.31837761,226.2,226.13,8.31837761]
[1734079935559,8.31837761,226.22,226.15,8.31837761]
[1734079935761,8.31837761,226.22,226.16,8.31837761]
[1734079937078,8.31837761,226.21,226.15,8.31837761]
[1734079937277,8.31837761,226.2,226.14,8.31837761]
[1734079937480,8.31837761,226.2,226.13,8.31837761]
[1734079937793,8.31837761,226.2,226.14,8.31837761]
[1734079938678,8.31837761,226.2,226.13,8.31837761]
[1734079938983,8.31837761,226.21,226.14,8.31837761]
[1734079940088,8.31837761,226.22,226.15,8.31837761]
[1734079941797,8.31837761,226.23,226.16,8.31837761]
[1734079941973,8.31837761,226.24,226.17,8.31837761]
[1734079942172,8.31837761,226.25,226.18,8.31837761]
[1734079942769,8.31837761,226.24,226.18,8.31837761]
[1734079943483,11.0477,226.29,226.17,8.31837761]
[1734079943484,8.31837761,226.23,226.17,8.31837761]
[1734079945392,8.31837761,226.22,226.15,8.31837761]
[1734079946980,8.31837761,226.21,226.15,8.31837761]
[1734079948281,8.31837761,226.19,226.11,8.036]
[1734079948601,8.31837761,226.19,226.12,8.31837761]
[1734079949675,8.31837761,226.19,226.13,8.31837761]
[1734079949878,8.31837761,226.2,226.14,8.31837761]
[1734079950182,8.31837761,226.21,226.14,8.31837761]
[1734079951305,8.31837761,226.2,226.14,8.31837761]
[1734079952378,8.31837761,226.19,226.11,8.036]
[1734079952581,8.31837761,226.18,226.12,8.31837761]
[1734079953574,8.31837761,226.19,226.12,8.31837761]
[1734079954699,8.31837761,226.19,226.11,8.036]
[1734079954879,8.31837761,226.18,226.12,8.31837761]
[1734079955196,8.31837761,226.17,226.11,8.036]
[1734079955500,8.31837761,226.17,226.11,6.4352]
[1734079955808,8.31837761,226.17,226.11,14.75357761]
[1734079955998,8.31837761,226.19,226.12,8.31837761]
[1734079956202,8.31837761,226.2,226.13,8.31837761]
[1734079959312,11.0514,226.22,226.16,8.31837761]
[1734079959521,11.0495,226.26,226.18,8.31837761]
[1734079959807,8.31837761,226.25,226.18,8.31837761]
[1734079960008,8.31837761,226.24,226.18,8.31837761]
[1734079961585,8.31837761,226.24,226.17,8.31837761]
[1734079962307,8.31837761,226.23,226.17,8.31837761]
[1734079964386,8.31837761,226.23,226.13,1.5813]
[1734079964387,8.31837761,226.19,226.13,1.5813]
[1734079965007,8.31837761,226.2,226.14,8.31837761]
[1734079965211,8.20173268,226.21,226.15,8.31837761]
[1734079965589,8.31837761,226.2,226.13,9.89967761]
[1734079967091,8.31837761,226.2,226.14,8.31837761]
[1734079969315,8.31837761,226.2,226.13,9.89967761]
[1734079970406,8.31837761,226.19,226.13,1.5813]
[1734079972803,8.31837761,226.2,226.13,9.89967761]
[1734079975422,8.31837761,226.19,226.13,9.89967761]
[1734079976516,8.31837761,226.2,226.13,9.89967761]
[1734079978320,8.31837761,226.2,226.13,1.5813]
[1734079979735,8.31837761,226.19,226.13,1.5813]
[1734079979913,8.31837761,226.17,226.11,6.4352]
[1734079980602,8.31837761,226.15,226.11,6.4352]
[1734079981430,8.31837761,226.15,226.08,8.31837761]
[1734079981648,8.31837761,226.14,226.07,9.84587761]
[1734079982337,8.31837761,226.13,226.07,1.5275]
[1734079982556,8.31837761,226.12,226.07,1.5275]
[1734079982843,8.31837761,226.12,226.06,6.5753]
[1734079983520,8.31837761,226.11,226.06,6.5753]
[1734079983814,8.31837761,226.1,226.06,6.5753]
[1734079984019,8.31837761,226.09,226.03,8.31837761]
[1734079984657,8.31837761,226.09,226.02,9.94637761]
[1734079984821,8.31837761,226.09,226.02,1.628]
[1734079985019,8.31837761,226.08,226.02,1.628]
[1734079985429,8.31837761,226.07,226.02,1.628]
[1734079985619,8.31837761,226.08,226.02,1.628]
[1734079986331,8.31837761,226.07,226.02,1.628]
[1734079987754,32.09526161,226.06,226.02,1.628]
[1734079988055,8.31837761,226.07,226.02,1.628]
[1734079989948,23.776884,226.1,226.04,8.31837761]
[1734079990244,8.31837761,226.11,226.05,8.31837761]
[1734079990632,8.31837761,226.11,226.02,1.628]
[1734079990633,8.31837761,226.11,226.04,8.31837761]
[1734079990831,8.31837761,226.12,226.06,8.31837761]
[1734079991262,23.776884,226.12,226.06,8.31837761]
[1734079991556,23.776884,226.12,226.07,8.31837761]
[1734079993740,14.35902569,226.19,226.07,8.31837761]
[1734079993939,8.31837761,226.14,226.08,8.31837761]
[1734079994147,12.5806,226.19,226.09,8.31837761]
[1734079994345,6.1526,226.23,226.09,8.31837761]
[1734079994346,1.75637762,226.23,226.11,8.31837761]
[1734079994548,8.31837761,226.17,226.11,8.31837761]
[1734079995232,11.051,226.23,226.11,8.31837761]
[1734079995233,8.31837761,226.18,226.11,8.31837761]
[1734079995941,8.31837761,226.19,226.12,8.31837761]
[1734079998476,8.31837761,226.2,226.13,8.31837761]
[1734079999056,8.31837761,226.22,226.15,8.31837761]
[1734080000272,8.31837761,226.21,226.14,8.31837761]
[1734080001383,1.75227879,226.26,226.14,8.31837761]
[1734080001686,8.31837761,226.21,226.15,8.31837761]
[1734080002049,23.776884,226.26,226.15,8.31837761]
[1734080002253,23.776884,226.26,226.17,8.31837761]
[1734080002254,8.31837761,226.24,226.17,8.31837761]
[1734080002566,8.31837761,226.23,226.16,8.31837761]
[1734080002779,8.31837761,226.22,226.15,8.31837761]
[1734080003456,11.0491,226.27,226.13,0.663143]
[1734080003457,8.31837761,226.23,226.16,8.31837761]
[1734080003657,8.31837761,226.24,226.17,8.31837761]
[1734080004249,8.31837761,226.24,226.17,14.42017761]
[1734080008065,11.0491,226.27,226.17,14.42017761]
[1734080008066,8.31837761,226.23,226.17,6.1018]
[1734080008675,8.31837761,226.22,226.17,6.1018]
[1734080009758,8.31837761,226.23,226.17,6.1018]
[1734080015794,8.31837761,226.24,226.17,14.42017761]
[1734080015995,8.31837761,226.24,226.18,8.31837761]
[1734080016175,20.0,226.26,226.2,8.31837761]
[1734080016573,28.31837761,226.26,226.19,8.31837761]
[1734080019890,8.31837761,226.25,226.18,9.97467761]
[1734080021113,8.31837761,226.23,226.18,1.6563]
[1734080022395,23.776884,226.25,226.18,1.6563]
[1734080022576,8.31837761,226.23,226.18,1.6563]
[1734080025096,8.31837761,226.23,226.18,1.449353]
[1734080027979,11.0472,226.3,226.18,9.76773061]
[1734080028295,11.0472,226.3,226.21,8.31837761]
[1734080028296,8.31837761,226.28,226.21,8.31837761]
[1734080029203,8.31837761,226.27,226.21,8.31837761]
[1734080030783,8.31837761,226.28,226.21,8.31837761]
[1734080032909,23.776884,226.3,226.21,8.31837761]
[1734080033108,8.31837761,226.27,226.2,8.31837761]
[1734080035012,8.31837761,226.26,226.18,1.449353]
[1734080035311,8.31837761,226.26,226.19,8.31837761]
[1734080035997,8.31837761,226.26,226.2,8.31837761]
[1734080037207,8.31837761,226.27,226.2,8.31837761]
[1734080037701,11.0468,226.31,226.2,8.31837761]
[1734080037702,8.31837761,226.26,226.2,8.31837761]
[1734080040116,23.776884,226.3,226.2,8.31837761]
[1734080040409,8.31837761,226.26,226.2,8.31837761]
[1734080041000,8.31837761,226.26,226.19,8.31837761]
[1734080041190,23.776884,226.33,226.18,1.449353]
[1734080041191,8.31837761,226.23,226.18,1.449353]
[1734080043687,8.31837761,226.24,226.18,1.449353]
[1734080044097,8.31837761,226.24,226.18,9.76773061]
[1734080045418,8.31837761,226.22,226.17,6.1018]
[1734080046284,8.31837761,226.18,226.13,1.6105]
[1734080046483,23.776884,226.24,226.13,9.92887761]
[1734080046723,8.31837761,226.21,226.14,8.31837761]
[1734080046917,8.31837761,226.21,226.15,8.31837761]
[1734080047419,8.31837761,226.22,226.16,8.31837761]
[1734080047622,8.31837761,226.2,226.14,8.31837761]
[1734080048120,8.31837761,226.2,226.13,9.92887761]
[1734080049998,8.31837761,226.2,226.14,8.31837761]
[1734080052323,8.31837761,226.2,226.13,9.92887761]
[1734080055007,8.31837761,226.2,226.14,8.31837761]
[1734080055297,8.31837761,226.21,226.14,8.31837761]
[1734080055497,8.31837761,226.22,226.15,8.31837761]
[1734080055690,8.31837761,226.26,226.19,8.31837761]
[1734080056624,8.31837761,226.25,226.18,8.31837761]
[1734080059523,8.31837761,226.26,226.19,8.31837761]
[1734080059733,8.31837761,226.27,226.2,8.31837761]
[1734080060024,8.31837761,226.27,226.2,14.97087761]
[1734080060235,8.31837761,226.26,226.2,14.97087761]
[1734080061731,8.31837761,226.27,226.2,14.97087761]
[1734080067515,8.31837761,226.26,226.2,14.97087761]
[1734080069623,8.31837761,226.27,226.21,8.31837761]
[1734080071930,8.31837761,226.27,226.2,14.97087761]
[1734080074413,8.31837761,226.26,226.2,14.97087761]
[1734080075037,8.31837761,226.26,226.2,6.6525]
[1734080077943,11.0482,226.29,226.2,14.97087761]
[1734080078155,8.31837761,226.27,226.2,14.97087761]
[1734080079643,8.31837761,226.26,226.2,6.6525]
[1734080082238,8.31837761,226.27,226.2,14.97087761]
[1734080083433,8.31837761,226.27,226.2,6.6525]
[1734080086246,8.31837761,226.27,226.2,14.97087761]
[1734080087134,20.0,226.3,226.22,8.31837761]
[1734080087456,8.31837761,226.29,226.22,8.31837761]
[1734080087621,8.31837761,226.28,226.21,9.88037761]
[1734080087821,23.776884,226.32,226.22,8.31837761]
[1734080088039,8.31837761,226.31,226.24,8.31837761]
[1734080088731,8.31837761,226.32,226.25,8.31837761]
[1734080091740,11.0442,226.37,226.22,0.66291044]
[1734080091741,8.31837761,226.31,226.24,8.31837761]
[1734080092448,23.776884,226.36,226.25,14.94007761]
[1734080092662,8.31837761,226.32,226.25,14.94007761]
[1734080093249,8.31837761,226.31,226.25,6.6217]
[1734080093631,8.31837761,226.29,226.25,6.6217]
[1734080096767,8.31837761,226.3,226.25,6.6217]
[1734080097836,8.31837761,226.31,226.25,6.6217]
[1734080098036,8.31837761,226.32,226.26,8.31837761]
[1734080105064,8.31837761,226.32,226.25,14.94007761]
[1734080107885,8.31837761,226.28,226.25,6.6217]
[1734080108178,8.31837761,226.27,226.25,6.6217]
[1734080109657,8.31837761,226.26,226.21,1.562]
[1734080109854,8.31837761,226.25,226.21,1.562]
[1734080110062,8.31837761,226.24,226.2,6.1915]
[1734080112656,8.31837761,226.25,226.2,6.1915]
[1734080112856,8.31837761,226.26,226.2,14.50987761]
[1734080114054,8.31837761,226.27,226.2,14.50987761]
[1734080114255,8.31837761,226.28,226.21,8.31837761]
[1734080114456,23.776884,226.31,226.21,8.31837761]
[1734080114665,8.31837761,226.28,226.21,8.31837761]
[1734080118887,8.31837761,226.28,226.22,8.31837761]
[1734080119287,8.31837761,226.27,226.21,8.31837761]
[1734080119463,8.31837761,226.26,226.2,6.1915]
[1734080121477,8.31837761,226.24,226.2,6.1915]
[1734080122195,8.31837761,226.25,226.2,6.1915]
[1734080123768,8.31837761,226.26,226.2,14.50987761]
[1734080124377,8.31837761,226.27,226.2,14.50987761]
[1734080125176,11.0468,226.31,226.2,14.50987761]
[1734080125177,8.31837761,226.28,226.21,8.31837761]
[1734080126792,8.31837761,226.28,226.22,8.31837761]
[1734080127173,8.31837761,226.28,226.21,8.31837761]
[1734080127981,8.31837761,226.28,226.2,14.50987761]
[1734080128203,23.91063824,226.35,226.16,1.5556]
[1734080128204,8.31837761,226.22,226.16,1.5556]
[1734080128504,8.31837761,226.2,226.16,1.5556]
[1734080129302,8.31837761,226.2,226.15,6.0271]
[1734080130984,11.0498,226.25,226.15,6.0271]
[1734080130985,8.31837761,226.19,226.15,6.0271]
[1734080133785,8.31837761,226.18,226.15,6.0271]
[1734080134382,11.0498,226.25,226.15,6.0271]
[1734080134383,8.31837761,226.19,226.15,6.0271]
[1734080134589,8.31837761,226.2,226.15,6.0271]
[1734080135398,11.0498,226.25,226.15,6.0271]
[1734080135399,8.31837761,226.18,226.15,6.0271]
[1734080135782,8.31837761,226.19,226.15,6.0271]
[1734080136811,8.31837761,226.2,226.15,6.0271]
[1734080141087,8.31837761,226.19,226.15,6.0271]
[1734080144294,8.31837761,226.18,226.15,6.0271]
[1734080149208,8.31837761,226.17,226.11,1.5694]
[1734080149522,8.31837761,226.16,226.11,1.5694]
[1734080151222,8.31837761,226.17,226.11,1.5694]
[1734080151421,8.31837761,226.16,226.11,1.5694]
[1734080154428,8.31837761,226.17,226.11,1.5694]
[1734080157325,8.31837761,226.16,226.11,1.5694]
[1734080157700,11.0521,226.2,226.09,6.379]
[1734080157701,8.31837761,226.13,226.09,6.379]
[1734080158031,23.776884,226.15,226.09,6.379]
[1734080158233,8.31837761,226.13,226.09,6.379]
[1734080158616,8.31837761,226.13,226.05,1.6566]
[1734080158617,8.31837761,226.11,226.05,1.6566]
[1734080158818,8.31837761,226.1,226.05,1.6566]
[1734080159626,8.31837761,226.12,226.05,9.97497761]
[1734080159831,8.31837761,226.12,226.06,8.31837761]
[1734080160001,8.31837761,226.13,226.07,8.31837761]
[1734080160522,8.31837761,226.16,226.09,8.31837761]
[1734080160906,23.776884,226.16,226.09,8.31837761]
[1734080161123,32.09526161,226.16,226.09,8.31837761]
[1734080162229,8.31837761,226.16,226.1,8.31837761]
[1734080162450,23.776884,226.19,226.1,8.31837761]
[1734080162752,8.31837761,226.18,226.12,8.31837761]
[1734080163830,8.31837761,226.19,226.12,8.31837761]
[1734080164332,8.31837761,226.18,226.12,8.31837761]
[1734080164510,23.776884,226.22,226.12,8.31837761]
[1734080164825,8.31837761,226.18,226.08,0.12549]
[1734080165027,8.31837761,226.18,226.11,8.31837761]
[1734080165711,23.776884,226.22,226.12,6.0866]
[1734080165909,23.776884,226.22,226.12,14.40497761]
[1734080166123,8.31837761,226.19,226.12,14.40497761]
[1734080166312,8.31837761,226.18,226.12,6.0866]
[1734080168337,8.31837761,226.17,226.12,6.0866]
[1734080170444,8.31837761,226.16,226.12,6.0866]
[1734080170642,8.31837761,226.14,226.07,14.86967761]
[1734080172839,8.31837761,226.13,226.07,6.5513]
[1734080177229,8.31837761,226.13,226.07,14.86967761]
[1734080177428,11.0531,226.19,226.08,8.31837761]
[1734080177651,8.31837761,226.14,226.08,8.31837761]
[1734080182356,8.31837761,226.15,226.08,8.31837761]
[1734080182654,19.37147761,226.19,226.12,8.31837761]
[1734080183156,8.31837761,226.18,226.11,8.31837761]
[1734080183655,11.0511,226.22,226.13,8.31837761]
[1734080184035,8.31837761,226.19,226.13,8.31837761]
[1734080186446,11.0511,226.22,226.14,8.31837761]
[1734080186650,8.31837761,226.22,226.15,8.31837761]
[1734080188583,20.0,226.22,226.15,8.31837761]
[1734080188731,8.31837761,226.23,226.16,8.31837761]
[1734080189343,8.31837761,226.22,226.16,8.31837761]
[1734080189537,8.31837761,226.21,226.15,8.31837761]
[1734080192463,8.31837761,226.2,226.14,14.92077761]
[1734080194557,8.31837761,226.18,226.14,6.6024]
[1734080195060,8.31837761,226.17,226.14,6.6024]
[1734080195644,8.31837761,226.16,226.12,1.5713]
[1734080195850,8.31837761,226.16,226.1,8.31837761]
[1734080197538,8.31837761,226.17,226.11,8.31837761]
[1734080202371,8.31837761,226.17,226.1,8.31837761]
[1734080203073,8.31837761,226.16,226.09,6.6327]
[1734080203473,8.31837761,226.16,226.09,14.95107761]
[1734080204173,23.776884,226.22,226.09,14.95107761]
[1734080204368,8.31837761,226.16,226.1,8.31837761]
[1734080206879,8.31837761,226.17,226.1,8.31837761]
[1734080212992,8.31837761,226.19,226.12,8.31837761]
[1734080213674,8.31837761,226.2,226.13,8.31837761]
[1734080214668,8.31837761,226.19,226.11,0.12549]
[1734080214868,8.31837761,226.17,226.11,8.31837761]
[1734080215280,8.31837761,226.17,226.09,13.47470234]
[1734080215488,8.31837761,226.16,226.1,8.31837761]
[1734080216475,8.31837761,226.19,226.12,8.31837761]
[1734080218285,11.0504,226.24,226.09,14.13801179]
[1734080218286,8.31837761,226.18,226.11,8.31837761]
[1734080223982,8.31837761,226.18,226.09,14.13801179]
[1734080224187,8.31837761,226.15,226.09,6.6327]
[1734080224380,8.31837761,226.14,226.09,6.6327]
[1734080224580,8.31837761,226.13,226.09,6.6327]
[1734080226668,8.31837761,226.14,226.09,6.6327]
[1734080227180,11.0526,226.19,226.09,6.6327]
[1734080227181,8.31837761,226.16,226.09,14.95107761]
[1734080227596,8.31837761,226.17,226.1,8.31837761]
[1734080228699,8.31837761,226.16,226.09,14.95107761]
[1734080230308,8.31837761,226.14,226.09,6.6327]
[1734080232207,8.31837761,226.13,226.09,6.6327]
[1734080232511,8.31837761,226.12,226.07,8.43970234]
[1734080234499,8.31837761,226.13,226.07,8.43970234]
[1734080237096,8.31837761,226.14,226.07,16.75807995]
[1734080237834,8.31837761,226.16,226.09,8.31837761]
[1734080237992,8.31837761,226.17,226.1,8.31837761]
[1734080242411,8.31837761,226.17,226.11,14.34847761]
[1734080242609,8.31837761,226.2,226.13,8.31837761]
[1734080243312,8.31837761,226.19,226.12,8.31837761]
[1734080243523,8.31837761,226.2,226.13,8.31837761]
[1734080245801,8.31837761,226.19,226.12,8.31837761]
[1734080249044,8.31837761,226.17,226.11,14.34847761]
[1734080250407,8.31837761,226.17,226.11,6.0301]
[1734080250629,8.31837761,226.17,226.11,14.34847761]
[1734080251015,8.31837761,226.17,226.11,6.0301]
[1734080251237,8.31837761,226.17,226.11,14.34847761]
[1734080251739,8.31837761,226.18,226.11,6.0301]
[1734080251953,8.31837761,226.17,226.11,6.0301]
[1734080253141,8.31837761,226.15,226.11,6.0301]
[1734080253720,8.31837761,226.14,226.11,6.0301]
[1734080254034,8.31837761,226.15,226.11,6.0301]
[1734080255841,8.31837761,226.13,226.11,6.0301]
[1734080256048,8.31837761,226.13,226.08,6.84200234]
[1734080256748,8.31837761,226.14,226.08,6.84200234]
[1734080257448,11.0516,226.21,226.08,15.16037995]
[1734080257618,23.776884,226.2,226.11,8.31837761]
[1734080257823,8.31837761,226.17,226.1,8.31837761]
[1734080258448,8.31837761,226.16,226.09,8.31837761]
[1734080260047,23.776884,226.2,226.1,8.31837761]
[1734080260248,8.31837761,226.17,226.1,8.31837761]
[1734080260622,8.31837761,226.17,226.09,6.84200234]
[1734080260826,8.31837761,226.17,226.1,8.31837761]
[1734080261441,8.31837761,226.17,226.11,8.31837761]
[1734080262431,8.31837761,226.17,226.1,8.31837761]
[1734080264854,8.31837761,226.17,226.11,8.31837761]
[1734080266132,8.31837761,226.17,226.09,6.84200234]
[1734080266333,8.31837761,226.17,226.1,8.31837761]
[1734080266736,8.31837761,226.19,226.12,8.31837761]
[1734080269276,8.31837761,226.18,226.12,8.31837761]
[1734080269637,8.31837761,226.18,226.11,8.31837761]
[1734080270467,23.776884,226.2,226.11,8.31837761]
[1734080270665,8.31837761,226.18,226.11,8.31837761]
[1734080272352,8.31837761,226.17,226.1,8.31837761]
[1734080272743,23.776884,226.2,226.09,6.84200234]
[1734080272744,8.31837761,226.15,226.09,6.84200234]
[1734080273046,23.776884,226.2,226.1,8.31837761]
[1734080273257,8.31837761,226.17,226.1,8.31837761]
[1734080274971,8.31837761,226.16,226.09,15.16037995]
[1734080275159,8.31837761,226.15,226.09,6.84200234]
[1734080276455,8.31837761,226.15,226.09,15.16037995]
[1734080277068,8.31837761,226.13,226.08,6.84200234]
[1734080277256,8.31837761,226.11,226.08,6.84200234]
[1734080277458,8.31837761,226.1,226.08,6.84200234]
[1734080277765,8.31837761,226.1,226.04,35.686387]
[1734080277766,8.31837761,226.1,226.07,6.84200234]
[1734080278974,8.31837761,226.1,226.06,6.84200234]
[1734080279147,8.31837761,226.11,226.06,6.84200234]
[1734080280649,8.31837761,226.12,226.06,6.84200234]
[1734080280854,23.776884,226.18,226.08,8.31837761]
[1734080281054,8.31837761,226.15,226.08,8.31837761]
[1734080281670,8.31837761,226.13,226.06,15.16037995]
[1734080281881,8.31837761,226.13,226.06,6.84200234]
[1734080282069,8.31837761,226.13,226.06,15.16037995]
[1734080283381,8.31837761,226.14,226.07,8.31837761]
[1734080286585,34.829984,226.18,226.07,8.31837761]
[1734080286887,8.31837761,226.14,226.07,8.31837761]
[1734080287459,8.31837761,226.13,226.06,15.16037995]
[1734080288078,8.31837761,226.13,226.06,8.31837761]
[1734080289486,8.31837761,226.11,226.05,6.84200234]
[1734080290390,8.31837761,226.09,226.03,6.84200234]
[1734080290568,8.31837761,226.08,226.03,6.84200234]
[1734080291892,8.31837761,226.04,225.98,15.16037995]
[1734080292084,8.31837761,226.05,225.98,8.31837761]
[1734080295600,8.31837761,226.04,225.98,8.31837761]
[1734080297177,20.0,226.07,225.98,8.31837761]
[1734080297392,23.776884,226.09,225.98,8.31837761]
[1734080297393,8.31837761,226.04,225.98,8.31837761]
[1734080298303,23.776884,226.09,225.98,8.31837761]
[1734080298508,11.0571,226.1,226.0,8.31837761]
[1734080298797,28.31837761,226.07,226.01,8.31837761]
[1734080300278,8.31837761,226.08,226.02,8.31837761]
[1734080300584,1.6034,226.11,226.04,8.31837761]
[1734080300585,8.31837761,226.1,226.04,8.31837761]
[1734080301802,8.31837761,226.12,226.06,8.31837761]
[1734080302107,8.31837761,226.13,226.06,8.31837761]
[1734080304090,8.31837761,226.12,226.06,8.31837761]
[1734080304295,8.31837761,226.12,226.05,8.31837761]
[1734080304877,8.31837761,226.12,226.06,8.31837761]
[1734080305104,8.31837761,226.13,226.06,8.31837761]
[1734080307807,23.776884,226.15,226.06,8.31837761]
[1734080307985,8.31837761,226.12,226.06,8.31837761]
[1734080309688,11.0536,226.18,226.08,8.31837761]
[1734080309689,8.31837761,226.14,226.08,8.31837761]
[1734080310414,8.31837761,226.14,226.07,8.31837761]
[1734080311610,8.31837761,226.14,226.05,1.5373]
[1734080311797,8.31837761,226.13,226.06,8.31837761]
[1734080313712,8.31837761,226.14,226.07,8.31837761]
[1734080316701,8.31837761,226.13,226.07,8.31837761]
[1734080324408,8.31837761,226.13,226.06,8.31837761]
[1734080324603,8.31837761,226.11,226.05,1.5373]
[1734080325913,8.31837761,226.11,226.05,9.85567761]
[1734080327123,22.1043,226.2,226.05,9.85567761]
[1734080327124,11.0521,226.2,226.05,9.85567761]
[1734080327300,8.31837761,226.13,226.07,8.31837761]
[1734080327815,8.31837761,226.13,226.06,8.98181466]
[1734080328712,8.31837761,226.13,226.06,8.31837761]
[1734080330425,8.31837761,226.12,226.06,8.31837761]
[1734080332106,8.31837761,226.12,226.05,1.5373]
[1734080332307,8.31837761,226.12,226.05,9.85567761]
[1734080333408,8.31837761,226.12,226.05,1.5373]
[1734080333733,8.31837761,226.12,226.05,9.85567761]
[1734080334129,20.0,226.16,226.02,13.03680234]
[1734080334130,8.31837761,226.09,226.02,13.03680234]
[1734080334428,64.32811044,226.16,226.02,6.1948]
[1734080334429,8.31837761,226.08,226.02,6.1948]
[1734080335507,8.31837761,226.08,226.02,14.51317761]
[1734080337535,8.31837761,226.09,226.02,14.51317761]
[1734080340113,8.31837761,226.09,226.03,8.31837761]
[1734080340637,8.31837761,226.09,226.02,14.51317761]
[1734080344119,8.31837761,226.09,226.02,21.35517995]
[1734080344806,8.31837761,226.09,226.03,8.31837761]
[1734080345722,8.31837761,226.1,226.04,8.31837761]
[1734080345912,64.32811044,226.16,226.04,8.31837761]
[1734080345913,23.776884,226.15,226.04,8.31837761]
[1734080346216,8.31837761,226.13,226.07,8.31837761]
[1734080346435,8.31837761,226.14,226.07,8.31837761]
[1734080347528,8.31837761,226.14,226.08,8.31837761]
[1734080349645,8.31837761,226.13,226.07,8.31837761]
[1734080355430,8.31837761,226.13,226.06,8.31837761]
[1734080358024,8.31837761,226.11,226.05,8.31837761]
[1734080361126,8.31837761,226.12,226.05,8.31837761]
[1734080362336,8.31837761,226.09,226.02,6.1948]
[1734080362552,8.31837761,226.09,226.02,14.51317761]
[1734080362856,8.31837761,226.12,226.05,8.31837761]
[1734080364558,8.31837761,226.13,226.06,8.31837761]
[1734080364868,20.0,226.17,226.07,8.98180231]
[1734080365080,8.31837761,226.15,226.09,8.31837761]
[1734080367563,28.31837761,226.16,226.09,8.31837761]
[1734080368455,8.31837761,226.15,226.09,8.31837761]
[1734080369448,8.31837761,226.15,226.08,8.31837761]
[1734080374651,8.31837761,226.14,226.08,8.31837761]
[1734080376071,20.0,226.16,226.11,8.31837761]
[1734080376265,20.0,226.16,226.1,8.31837761]
[1734080376470,28.31837761,226.16,226.09,8.31837761]
[1734080379663,28.31837761,226.16,226.07,6.039]
[1734080379664,8.31837761,226.15,226.07,6.039]
[1734080379972,8.31837761,226.15,226.09,8.31837761]
[1734080380577,8.31837761,226.14,226.07,6.039]
[1734080380745,8.31837761,226.13,226.07,6.039]
[1734080381458,8.31837761,226.13,226.07,14.35737761]
[1734080382052,8.31837761,226.13,226.07,6.039]
[1734080382471,8.31837761,226.13,226.07,14.35737761]
[1734080384058,11.0546,226.15,226.07,14.35737761]
[1734080384059,8.31837761,226.14,226.07,14.35737761]
[1734080384779,8.31837761,226.13,226.07,6.039]
[1734080386052,8.31837761,226.12,226.05,8.31837761]
[1734080387357,8.31837761,226.13,226.06,8.31837761]
[1734080387650,8.31837761,226.13,226.07,8.31837761]
[1734080390885,11.0528,226.19,226.11,8.31837761]
[1734080391094,17.61220495,226.25,226.09,6.4606]
[1734080391095,19.52526671,226.26,226.14,8.31837761]
[1734080391272,11.0508,226.23,226.17,8.31837761]
[1734080391580,1.6509,226.26,226.17,8.31837761]
[1734080391791,1.6509,226.26,226.18,8.31837761]
[1734080391972,9.96927761,226.26,226.19,8.31837761]
[1734080392169,8.31837761,226.25,226.19,8.31837761]
[1734080392490,8.31837761,226.25,226.18,8.31837761]
[1734080395369,11.0491,226.27,226.19,8.31837761]
[1734080395572,8.31837761,226.28,226.21,8.31837761]
[1734080398704,8.31837761,226.28,226.22,8.31837761]
[1734080399174,12.6891,226.31,226.22,8.31837761]
[1734080399379,8.31837761,226.28,226.21,8.31837761]
[1734080399583,12.6891,226.31,226.21,8.31837761]
[1734080399903,8.31837761,226.27,226.21,8.31837761]
[1734080400295,8.31837761,226.27,226.17,7.6335]
[1734080400479,8.31837761,226.25,226.17,7.6335]
[1734080400680,8.31837761,226.26,226.19,8.31837761]
[1734080401088,8.31837761,226.26,226.2,8.31837761]
[1734080401288,8.31837761,226.27,226.21,8.31837761]
[1734080401488,19.36677761,226.28,226.21,8.31837761]
[1734080402412,8.31837761,226.29,226.23,8.31837761]